fUST/lending_fUST_20240920
["ID","MTS","AMOUNT","RATE_DAILY","PERIOD"]
[338608729,1726779040449,-500.0,0.00017112,2]
[338608730,1726779040459,-500.0,0.00017112,2]
[338608731,1726779040468,-500.0,0.00017112,2]
[338608732,1726779040479,-318.46183641,0.00017112,2]
[338608733,1726779040488,-500.0,0.00017112,2]
[338608734,1726779040498,-500.0,0.00017112,2]
[338608735,1726779040507,-500.0,0.00017112,2]
[338608736,1726779040517,-500.0,0.00017112,2]
[338608737,1726779040526,-500.0,0.00017112,2]
[338608738,1726779040755,-500.0,0.00017112,2]
[338608739,1726779040768,-500.0,0.00017112,2]
[338608740,1726779040778,-500.0,0.00017112,2]
[338608741,1726779040788,-500.0,0.00017112,2]
[338608742,1726779040797,-266.0,0.00017112,2]
[338608743,1726779040807,-226.6666716,0.00017442,2]
[338608744,1726779040817,-276.63789732,0.000176,2]
[338608745,1726779040827,-276.63789732,0.000176,2]
[338608746,1726779040837,-276.63789732,0.000176,2]
[338608747,1726779040848,-500.0,0.00017808,2]
[338608748,1726779040857,-1000.0,0.0001787,2]
[338608749,1726779040866,-859.51098167,0.0001787,2]
[338608750,1726779040876,-1000.0,0.0001787,2]
[338608751,1726779040885,-420.0,0.00018004,2]
[338608752,1726779040895,-415.0948282,0.0001811,2]
[338608753,1726779040904,-420.0,0.00018122,2]
[338608754,1726779040913,-1025.3072368,0.00018145,2]
[338608755,1726779040922,-822.8123903,0.00018192,2]
[338608756,1726779040932,-911.90450258,0.00018434,2]
[338608757,1726779040942,-600.0,0.00018583,2]
[338608758,1726779040951,-250.899122,0.00018632,2]
[338608759,1726779040960,-164.162111,0.00018632,2]
[338608760,1726779040971,-258.133672,0.00018632,2]
[338608761,1726779040982,-164.162111,0.00018632,2]
[338608762,1726779040991,-220.593835,0.00018632,2]
[338608763,1726779041000,-1025.3072368,0.00018645,2]
[338608764,1726779041009,-250.899122,0.00018865,2]
[338608765,1726779041020,-157.69352069,0.0001887,2]
[338608766,1726779041031,-4864.39490313,0.00018872,2]
[338608767,1726779041041,-157.69352065,0.00018873,2]
[338608768,1726779041051,-157.69352065,0.00018875,2]
[338608769,1726779041062,-157.69352065,0.00018878,2]
[338608770,1726779041074,-157.69352065,0.0001888,2]
[338608771,1726779041084,-204.0,0.000189,2]
[338608772,1726779041093,-524.0,0.00018928,2]
[338608773,1726779041104,-150.0,0.00018928,2]
[338608774,1726779041114,-1216.0,0.00018928,2]
[338608775,1726779041123,-1000.0,0.0001894,2]
[338608776,1726779041133,-151.0,0.00018962,2]
[338608777,1726779041142,-237.72804819,0.00018969,2]
[338608778,1726779041153,-500.0,0.00018969,2]
[338608779,1726779041162,-500.0,0.00018969,2]
[338608780,1726779041172,-500.0,0.00018969,2]
[338608781,1726779041181,-160.02586601,0.00018969,2]
[338608782,1726779041190,-500.0,0.00018969,2]
[338608783,1726779041200,-500.0,0.00018969,2]
[338608784,1726779041209,-500.0,0.00018969,2]
[338608785,1726779041219,-500.0,0.00018969,2]
[338608786,1726779041229,-500.0,0.00018969,2]
[338608787,1726779041239,-500.0,0.00018969,2]
[338608788,1726779041248,-500.0,0.00018969,2]
[338608789,1726779041257,-458.17927909,0.00018969,2]
[338608790,1726779041267,-500.0,0.00018969,2]
[338608791,1726779041276,-500.0,0.00018969,2]
[338608792,1726779041286,-500.0,0.00018969,2]
[338608793,1726779041296,-500.0,0.00018969,2]
[338608794,1726779041306,-500.0,0.00018969,2]
[338608795,1726779041316,-500.0,0.00018969,2]
[338608796,1726779041326,-500.0,0.00018969,2]
[338608797,1726779041336,-500.0,0.00018969,2]
[338608798,1726779041345,-500.0,0.00018969,2]
[338608799,1726779041355,-505.71969421,0.00018969,2]
[338608800,1726779041367,-500.0,0.00018969,2]
[338608801,1726779041376,-500.0,0.00018969,2]
[338608802,1726779041386,-500.0,0.00018969,2]
[338608803,1726779041395,-500.0,0.00018969,2]
[338608804,1726779041404,-500.0,0.00018969,2]
[338608805,1726779041414,-499.99999999,0.00018969,2]
[338608806,1726779041425,-500.0,0.00018969,2]
[338608807,1726779041435,-244.89069988,0.00018969,2]
[338608808,1726779041447,-500.0,0.00018969,2]
[338608809,1726779041458,-500.0,0.00018969,2]
[338608810,1726779041469,-482.54542032,0.00018969,2]
[338608811,1726779041479,-500.0,0.00018969,2]
[338608812,1726779041489,-500.0,0.00018969,2]
[338608813,1726779041499,-500.0,0.00018969,2]
[338608814,1726779041508,-500.0,0.00018969,2]
[338608815,1726779041518,-482.54542032,0.00018969,2]
[338608816,1726779041527,-500.0,0.00018969,2]
[338608817,1726779041538,-500.0,0.00018969,2]
[338608818,1726779041548,-500.0,0.00018969,2]
[338608819,1726779041561,-500.0,0.00018969,2]
[338608820,1726779041572,-323.63634462,0.00018969,2]
[338608821,1726779041582,-500.0,0.00018969,2]
[338608822,1726779041592,-500.0,0.00018969,2]
[338608823,1726779041602,-500.0,0.00018969,2]
[338608824,1726779041613,-500.0,0.00018969,2]
[338608825,1726779041623,-482.54542032,0.00018969,2]
[338608826,1726779041633,-324.95628725,0.00018969,2]
[338608827,1726779041642,-500.0,0.00018969,2]
[338608828,1726779041652,-500.0,0.00018969,2]
[338608829,1726779041661,-482.54542032,0.00018969,2]
[338608830,1726779041671,-500.0,0.00018969,2]
[338608831,1726779041680,-500.0,0.00018969,2]
[338608832,1726779041690,-500.0,0.00018969,2]
[338608833,1726779041700,-500.0,0.00018969,2]
[338608834,1726779041710,-223.81813048,0.00018969,2]
[338608835,1726779041719,-500.0,0.00018969,2]
[338608836,1726779041729,-323.63634461,0.00018969,2]
[338608837,1726779041739,-151.0,0.0001897,2]
[338608838,1726779041749,-151.0,0.0001897,2]
[338608839,1726779041759,-1612.816176,0.0001897,2]
[338608840,1726779041770,-63068.05176133,0.0001897,5]
[338608841,1726779041780,-95669.2537892,0.0001897,3]
[338608842,1726779041791,-166881.642383,0.0001897,3]
[338608843,1726779041800,-58.01201463,0.00018973,2]
[338608923,1726780033464,529.0,0.00018939,120]
[338608924,1726780033923,529.0,0.00018929,120]
[338608925,1726780034382,529.0,0.00018919,120]
[338608926,1726780034844,529.0,0.0002174,120]
[338608927,1726780035311,529.0,0.0002173,120]
[338608928,1726780035767,529.0,0.0002172,120]
[338608935,1726780154377,211.0,0.00018928,120]
[338608936,1726780154800,211.0,0.00018918,120]
[338608937,1726780155270,211.0,0.00018908,120]
[338608938,1726780155738,211.0,0.0002098,120]
[338608939,1726780156202,211.0,0.0002097,120]
[338608940,1726780156700,211.0,0.0002096,120]
[338608980,1726780238523,-157.264445,0.00016837,2]
[338608981,1726780238533,-253.766483,0.00016838,2]
[338608982,1726780238542,-157.264445,0.00017012,2]
[338608983,1726780238551,-181.254627,0.00017154,2]
[338608997,1726780240537,-9.345373,0.00017154,2]
[338608998,1726780240547,-157.264445,0.00017188,2]
[338608999,1726780240556,-157.264445,0.00017363,2]
[338609000,1726780240565,-300.0,0.00017369,2]
[338609001,1726780240574,-300.0,0.00017369,2]
[338609002,1726780240583,-1775.6825301,0.0001737,2]
[338609003,1726780240593,-24900.0,0.0001737,2]
[338609005,1726780240602,-190.6,0.00017413,2]
[338609007,1726780240611,-157.264445,0.00017539,2]
[338609009,1726780240620,-190.6,0.00017672,2]
[338609010,1726780240630,-157.264445,0.00017714,2]
[338609011,1726780240639,-500.0,0.00017808,2]
[338609012,1726780240649,-153.0,0.00017841,2]
[338609013,1726780240661,-190.6,0.0001793,2]
[338609014,1726780240677,-153.0,0.00017941,2]
[338609015,1726780240686,-153.0,0.00017941,2]
[338609016,1726780240696,-4256.3455403,0.00018058,2]
[338609017,1726780240704,-1708.8453946,0.00018145,2]
[338609018,1726780240714,-190.6,0.00018189,2]
[338609019,1726780240723,-911.90450258,0.00018387,2]
[338609020,1726780240732,-600.0,0.0001842,2]
[338609021,1726780240742,-190.6,0.00018448,2]
[338609022,1726780240751,-153.0,0.000185,2]
[338609023,1726780240760,-600.0,0.00018558,2]
[338609024,1726780240770,-600.0,0.00018603,2]
[338609025,1726780240779,-196.10515,0.00018632,2]
[338609026,1726780240788,-164.162111,0.00018632,2]
[338609027,1726780240797,-256.535124,0.00018632,2]
[338609028,1726780240807,-686.58467,0.00018632,2]
[338609029,1726780240816,-688.374293,0.00018632,2]
[338609030,1726780240825,-1708.8453946,0.00018645,2]
[338609031,1726780240835,-7138.03841527,0.00018646,2]
[338609032,1726780240845,-600.0,0.00018672,2]
[338609033,1726780240855,-190.6,0.00018706,2]
[338609034,1726780240864,-742.501,0.00018778,2]
[338609035,1726780240875,-157.69352069,0.00018848,2]
[338609036,1726780240884,-1733.20177832,0.0001885,2]
[338609037,1726780240893,-202.0,0.0001885,2]
[338609038,1726780240903,-157.69352065,0.00018851,2]
[338609039,1726780240912,-157.69352065,0.00018854,2]
[338609040,1726780240921,-157.69352065,0.00018856,2]
[338609041,1726780240931,-1000.0,0.00018859,2]
[338609042,1726780240940,-157.69352065,0.00018859,2]
[338609043,1726780240950,-49333.62735615,0.00018859,2]
[338609044,1726780240959,-196.10515,0.00018865,2]
[338609045,1726780240968,-256.535124,0.00018865,2]
[338609046,1726780240978,-686.58467,0.00018865,2]
[338609047,1726780240988,-688.374293,0.00018865,2]
[338609048,1726780240997,-48630.0042918,0.00018892,2]
[338609049,1726780241006,-80534.6228485,0.00018892,3]
[338609050,1726780241015,-151.0,0.00018892,2]
[338609051,1726780241025,-151.0,0.00018892,2]
[338609052,1726780241035,-1619.312438,0.00018892,2]
[338609053,1726780241044,-153.0,0.000189,2]
[338609054,1726780241053,-153.0,0.000189,2]
[338609055,1726780241063,-17333.1588329,0.00018904,2]
[338609056,1726780241072,-1000.0,0.00018917,2]
[338609057,1726780241082,-1000.0,0.00018923,2]
[338609058,1726780241091,-1000.0,0.00018929,2]
[338609059,1726780241100,-1000.0,0.00018936,2]
[338609060,1726780241109,-500.0,0.00018937,2]
[338609061,1726780241118,-500.0,0.00018937,2]
[338609062,1726780241127,-500.0,0.00018937,2]
[338609063,1726780241137,-237.72804819,0.00018937,2]
[338609064,1726780241146,-160.02586601,0.00018937,2]
[338609065,1726780241155,-500.0,0.00018937,2]
[338609066,1726780241173,-600.63993761,0.00018937,2]
[338609067,1726780241182,-244.89069988,0.00018937,2]
[338609068,1726780241191,-500.0,0.00018937,2]
[338609069,1726780241200,-500.0,0.00018937,2]
[338609070,1726780241209,-200.0,0.00018937,2]
[338609071,1726780241218,-500.0,0.00018937,2]
[338609072,1726780241229,-500.0,0.00018937,2]
[338609073,1726780241238,-500.0,0.00018937,2]
[338609074,1726780241248,-500.0,0.00018937,2]
[338609075,1726780241257,-500.0,0.00018937,2]
[338609076,1726780241266,-500.0,0.00018937,2]
[338609077,1726780241277,-500.0,0.00018937,2]
[338609078,1726780241286,-500.0,0.00018937,2]
[338609079,1726780241295,-500.0,0.00018937,2]
[338609080,1726780241307,-500.0,0.00018937,2]
[338609081,1726780241318,-500.0,0.00018937,2]
[338609082,1726780241327,-500.0,0.00018937,2]
[338609083,1726780241336,-500.0,0.00018937,2]
[338609084,1726780241345,-500.0,0.00018937,2]
[338609085,1726780241354,-500.0,0.00018937,2]
[338609086,1726780241364,-500.0,0.00018937,2]
[338609087,1726780241373,-500.0,0.00018937,2]
[338609088,1726780241382,-500.0,0.00018937,2]
[338609089,1726780241392,-500.0,0.00018937,2]
[338609090,1726780241401,-500.0,0.00018937,2]
[338609091,1726780241411,-500.0,0.00018937,2]
[338609092,1726780241421,-500.0,0.00018937,2]
[338609093,1726780241430,-500.0,0.00018937,2]
[338609094,1726780241439,-500.0,0.00018937,2]
[338609095,1726780241448,-500.0,0.00018937,2]
[338609096,1726780241457,-500.0,0.00018937,2]
[338609097,1726780241466,-500.0,0.00018937,2]
[338609098,1726780241475,-500.0,0.00018937,2]
[338609099,1726780241485,-500.0,0.00018937,2]
[338609100,1726780241494,-500.0,0.00018937,2]
[338609101,1726780241503,-500.0,0.00018937,2]
[338609102,1726780241513,-500.0,0.00018937,2]
[338609103,1726780241522,-500.0,0.00018937,2]
[338609104,1726780241532,-192.26492626,0.00018937,2]
[338609105,1726780241541,-500.0,0.00018937,2]
[338609106,1726780241550,-500.0,0.00018937,2]
[338609107,1726780241559,-500.0,0.00018937,2]
[338609108,1726780241569,-500.0,0.00018937,2]
[338609109,1726780241578,-500.0,0.00018937,2]
[338609110,1726780241586,-500.0,0.00018937,2]
[338609111,1726780241595,-500.0,0.00018937,2]
[338609112,1726780241604,-500.0,0.00018937,2]
[338609113,1726780241614,-500.0,0.00018937,2]
[338609114,1726780241623,-169.22649263,0.00018937,2]
[338609115,1726780241632,-500.0,0.00018937,2]
[338609116,1726780241641,-500.0,0.00018937,2]
[338609117,1726780241650,-499.99999999,0.00018937,2]
[338609118,1726780241660,-151.0,0.00018937,2]
[338609119,1726780241669,-1619.312438,0.00018937,2]
[338609120,1726780241678,-500.0,0.00018937,2]
[338609121,1726780241687,-500.0,0.00018937,2]
[338609122,1726780241697,-500.0,0.00018937,2]
[338609123,1726780241706,-500.0,0.00018937,2]
[338609124,1726780241715,-500.0,0.00018937,2]
[338609125,1726780241725,-500.0,0.00018937,2]
[338609126,1726780241735,-351.74730895,0.00018937,2]
[338609127,1726780241744,-278.88271825,0.00018937,2]
[338609128,1726780241753,-500.0,0.00018937,2]
[338609129,1726780241762,-500.0,0.00018937,2]
[338609130,1726780241771,-500.0,0.00018937,2]
[338609131,1726780241780,-500.0,0.00018937,2]
[338609132,1726780241790,-219.60709322,0.00018937,2]
[338609133,1726780241799,-500.0,0.00018937,2]
[338609134,1726780241808,-636.23780889,0.00018937,2]
[338609135,1726780241818,-500.0,0.00018937,2]
[338609136,1726780241827,-500.0,0.00018937,2]
[338609137,1726780241836,-500.0,0.00018937,2]
[338609138,1726780241846,-500.0,0.00018937,2]
[338609139,1726780241855,-500.0,0.00018937,2]
[338609140,1726780241864,-500.0,0.00018937,2]
[338609141,1726780241874,-500.0,0.00018937,2]
[338609142,1726780241883,-500.0,0.00018937,2]
[338609143,1726780241892,-500.0,0.00018937,2]
[338609144,1726780241902,-70526.55228475,0.00018938,5]
[338609145,1726780241912,-8627.74123206,0.00018938,5]
[338609161,1726780243568,-1619.312438,0.00018892,2]
[338609162,1726780243577,-1619.312438,0.00018937,2]
[338609163,1726780243586,-7521.06897519,0.00018938,5]
[338609164,1726780243595,-48630.0042918,0.00018938,3]
[338609165,1726780243605,-35087.5540171,0.00018938,3]
[338609188,1726780246653,-1022.12551638,0.00018938,3]
[338609190,1726780274636,150.5,0.00018929,120]
[338609191,1726780275085,150.5,0.00018919,120]
[338609192,1726780275547,150.5,0.00018909,120]
[338609193,1726780276019,150.5,0.00021908,120]
[338609194,1726780276482,251.98,0.00021898,120]
[338609226,1726780620262,6648.49264373,0.00014013,2]
[338609250,1726781412377,800.0,0.00023,120]
[338609271,1726781432802,-1087.53109463,0.000167,2]
[338609272,1726781432812,-300.0,0.00016923,2]
[338609273,1726781432823,-3.31126506,0.00016923,2]
[338609297,1726781440630,-296.68873494,0.00016923,2]
[338609299,1726781440639,-24900.0,0.00016924,2]
[338609300,1726781440648,-253.7664844,0.00016999,2]
[338609301,1726781440657,-600.0,0.0001746,2]
[338609302,1726781440666,-500.0,0.00017808,2]
[338609303,1726781440675,-4428.85829516,0.0001791,2]
[338609304,1726781440685,-3000.0,0.00018,2]
[338609305,1726781440694,-3000.0,0.0001801,2]
[338609306,1726781440703,-3000.0,0.0001802,2]
[338609307,1726781440713,-3000.0,0.0001803,2]
[338609308,1726781440723,-3000.0,0.0001804,2]
[338609309,1726781440734,-3000.0,0.0001805,2]
[338609310,1726781440745,-3000.0,0.0001806,2]
[338609313,1726781440756,-3000.0,0.0001807,2]
[338609315,1726781440766,-3000.0,0.0001808,2]
[338609317,1726781440776,-3000.0,0.0001809,2]
[338609319,1726781440786,-3000.0,0.000181,2]
[338609321,1726781440798,-157.69352069,0.000181,2]
[338609322,1726781440808,-3000.0,0.0001811,2]
[338609323,1726781440818,-157.69352065,0.00018117,2]
[338609324,1726781440827,-3000.0,0.0001812,2]
[338609325,1726781440836,-1000.0,0.0001812,2]
[338609326,1726781440846,-3000.0,0.0001813,2]
[338609327,1726781440856,-157.69352065,0.00018134,2]
[338609328,1726781440868,-3000.0,0.0001814,2]
[338609329,1726781440877,-1025.3072368,0.00018145,2]
[338609330,1726781440886,-3000.0,0.0001815,2]
[338609331,1726781440895,-157.69352065,0.00018151,2]
[338609332,1726781440906,-3000.0,0.0001816,2]
[338609333,1726781440916,-157.69352065,0.00018168,2]
[338609334,1726781440929,-3000.0,0.0001817,2]
[338609335,1726781440940,-3000.0,0.0001818,2]
[338609336,1726781440952,-3000.0,0.0001819,2]
[338609337,1726781440963,-151.0,0.00018192,2]
[338609338,1726781440972,-3000.0,0.000182,2]
[338609339,1726781440981,-151.0,0.000182,2]
[338609340,1726781440990,-227.254152,0.000182,2]
[338609341,1726781441000,-46198.5040772,0.000182,2]
[338609342,1726781441009,-78729.138872,0.000182,2]
[338609343,1726781441018,-500.0,0.00018209,2]
[338609344,1726781441029,-160.02586601,0.00018209,2]
[338609345,1726781441040,-500.0,0.00018209,2]
[338609346,1726781441051,-237.72804819,0.00018209,2]
[338609347,1726781441061,-500.0,0.00018209,2]
[338609348,1726781441071,-500.0,0.00018209,2]
[338609349,1726781441080,-244.89069988,0.00018209,2]
[338609350,1726781441092,-500.0,0.00018209,2]
[338609351,1726781441102,-500.0,0.00018209,2]
[338609352,1726781441119,-500.0,0.00018209,2]
[338609353,1726781441134,-500.0,0.00018209,2]
[338609354,1726781441147,-500.0,0.00018209,2]
[338609355,1726781441158,-500.0,0.00018209,2]
[338609356,1726781441169,-500.0,0.00018209,2]
[338609357,1726781441178,-500.0,0.00018209,2]
[338609358,1726781441188,-500.0,0.00018209,2]
[338609359,1726781441198,-500.0,0.00018209,2]
[338609360,1726781441207,-200.0,0.00018209,2]
[338609361,1726781441217,-622.21683157,0.00018209,2]
[338609362,1726781441226,-500.0,0.00018209,2]
[338609363,1726781441235,-500.0,0.00018209,2]
[338609364,1726781441244,-500.0,0.00018209,2]
[338609365,1726781441253,-500.0,0.00018209,2]
[338609366,1726781441262,-500.0,0.00018209,2]
[338609367,1726781441271,-500.0,0.00018209,2]
[338609368,1726781441280,-500.0,0.00018209,2]
[338609369,1726781441289,-500.0,0.00018209,2]
[338609370,1726781441298,-500.0,0.00018209,2]
[338609371,1726781441307,-500.0,0.00018209,2]
[338609372,1726781441316,-500.0,0.00018209,2]
[338609373,1726781441325,-500.0,0.00018209,2]
[338609374,1726781441335,-500.0,0.00018209,2]
[338609375,1726781441493,-500.0,0.00018209,2]
[338609376,1726781441502,-500.0,0.00018209,2]
[338609377,1726781441511,-500.0,0.00018209,2]
[338609378,1726781441520,-500.0,0.00018209,2]
[338609379,1726781441529,-500.0,0.00018209,2]
[338609380,1726781441539,-500.0,0.00018209,2]
[338609381,1726781441548,-500.0,0.00018209,2]
[338609382,1726781441558,-500.0,0.00018209,2]
[338609383,1726781441567,-500.0,0.00018209,2]
[338609384,1726781441577,-600.63993761,0.00018209,2]
[338609385,1726781441586,-500.0,0.00018209,2]
[338609386,1726781441595,-500.0,0.00018209,2]
[338609387,1726781441606,-500.0,0.00018209,2]
[338609388,1726781441617,-500.0,0.00018209,2]
[338609389,1726781441628,-500.0,0.00018209,2]
[338609390,1726781441639,-500.0,0.00018209,2]
[338609391,1726781441648,-500.0,0.00018209,2]
[338609392,1726781441660,-500.0,0.00018209,2]
[338609393,1726781441669,-500.0,0.00018209,2]
[338609394,1726781441679,-352.46853684,0.00018209,2]
[338609395,1726781441688,-500.0,0.00018209,2]
[338609396,1726781441697,-500.0,0.00018209,2]
[338609397,1726781441706,-500.0,0.00018209,2]
[338609398,1726781441718,-500.0,0.00018209,2]
[338609399,1726781441729,-500.0,0.00018209,2]
[338609400,1726781441739,-500.0,0.00018209,2]
[338609401,1726781441750,-304.88830286,0.00018209,2]
[338609402,1726781441761,-500.0,0.00018209,2]
[338609403,1726781441770,-278.88271825,0.00018209,2]
[338609404,1726781441779,-500.0,0.00018209,2]
[338609405,1726781441787,-500.0,0.00018209,2]
[338609406,1726781441797,-500.0,0.00018209,2]
[338609407,1726781441806,-500.0,0.00018209,2]
[338609408,1726781441815,-500.0,0.00018209,2]
[338609409,1726781441825,-500.0,0.00018209,2]
[338609410,1726781441834,-500.0,0.00018209,2]
[338609411,1726781441843,-500.0,0.00018209,2]
[338609412,1726781441853,-500.0,0.00018209,2]
[338609413,1726781441862,-500.0,0.00018209,2]
[338609414,1726781441872,-500.0,0.00018209,2]
[338609415,1726781441881,-500.0,0.00018209,2]
[338609416,1726781441891,-500.0,0.00018209,2]
[338609417,1726781441900,-188.24975774,0.00018209,2]
[338609418,1726781441910,-500.0,0.00018209,2]
[338609419,1726781441919,-500.0,0.00018209,2]
[338609420,1726781441928,-351.74730896,0.00018209,2]
[338609421,1726781441937,-500.0,0.00018209,2]
[338609422,1726781441946,-500.0,0.00018209,2]
[338609423,1726781441955,-500.0,0.00018209,2]
[338609424,1726781441964,-500.0,0.00018209,2]
[338609425,1726781441973,-70526.55228475,0.0001821,5]
[338609426,1726781441983,-3000.0,0.0001821,2]
[338609427,1726781441994,-46198.5040772,0.0001821,2]
[338609428,1726781442005,-2655.46052986,0.0001821,2]
[338609431,1726781443720,-500.0,0.00018209,2]
[338609432,1726781443730,-63.04860029,0.00018209,2]
[338609575,1726782632314,-300.0,0.000162,2]
[338609576,1726782632326,-300.0,0.000162,2]
[338609577,1726782632337,-11006.1275052,0.00016201,2]
[338609608,1726782639935,-13893.8724948,0.00016201,2]
[338609609,1726782639946,-253.7664844,0.00016383,2]
[338609610,1726782639956,-1775.6825301,0.00016388,2]
[338609611,1726782639966,-157.264445,0.000168,2]
[338609612,1726782639975,-175.5,0.00016996,2]
[338609613,1726782639985,-157.264445,0.00017092,2]
[338609614,1726782639995,-175.5,0.00017194,2]
[338609615,1726782640006,-157.264445,0.00017384,2]
[338609616,1726782640017,-175.5,0.00017392,2]
[338609617,1726782640027,-307.8132801,0.00017528,2]
[338609618,1726782640038,-153.0,0.00017528,2]
[338609619,1726782640047,-153.0,0.00017528,2]
[338609620,1726782640059,-153.0,0.00017528,2]
[338609621,1726782640068,-153.0,0.00017528,2]
[338609622,1726782640078,-153.0,0.00017528,2]
[338609623,1726782640088,-153.0,0.00017528,2]
[338609624,1726782640099,-175.5,0.00017591,2]
[338609625,1726782640112,-4428.85829516,0.000176,2]
[338609626,1726782640126,-157.264445,0.00017675,2]
[338609627,1726782640138,-276.63789732,0.000177,2]
[338609628,1726782640149,-276.63789732,0.000177,2]
[338609629,1726782640159,-276.63789732,0.000177,2]
[338609630,1726782640171,-420.0,0.00017708,2]
[338609631,1726782640180,-175.5,0.00017789,2]
[338609632,1726782640190,-500.0,0.00017808,2]
[338609633,1726782640201,-420.0,0.0001782,2]
[338609634,1726782640213,-175.5,0.00017988,2]
[338609635,1726782640223,-3000.0,0.00018,2]
[338609636,1726782640233,-3000.0,0.0001801,2]
[338609637,1726782640243,-3000.0,0.0001802,2]
[338609638,1726782640253,-3000.0,0.0001803,2]
[338609639,1726782640264,-3000.0,0.0001804,2]
[338609640,1726782640273,-308.16290499,0.0001804,2]
[338609641,1726782640283,-3000.0,0.0001805,2]
[338609642,1726782640292,-308.16290498,0.0001806,2]
[338609643,1726782640302,-3000.0,0.0001806,2]
[338609644,1726782640311,-6261.01059235,0.00018063,2]
[338609645,1726782640321,-3000.0,0.0001807,2]
[338609646,1726782640331,-308.16290498,0.0001808,2]
[338609647,1726782640340,-3000.0,0.0001808,2]
[338609648,1726782640350,-48630.0042918,0.0001808,2]
[338609649,1726782640360,-78596.3658456,0.0001808,2]
[338609650,1726782640369,-206.9871953,0.00018082,2]
[338609651,1726782640378,-208.7923626,0.00018082,2]
[338609652,1726782640390,-208.7923626,0.00018082,2]
[338609653,1726782640400,-208.7923626,0.00018082,2]
[338609654,1726782640410,-208.7923626,0.00018082,2]
[338609655,1726782640420,-415.3870451,0.00018082,2]
[338609656,1726782640431,-208.7923626,0.00018082,2]
[338609657,1726782640442,-208.7923626,0.00018082,2]
[338609658,1726782640452,-402.7015955,0.00018082,2]
[338609659,1726782640462,-208.7923626,0.00018082,2]
[338609660,1726782640471,-208.7923626,0.00018082,2]
[338609661,1726782640479,-208.7923626,0.00018082,2]
[338609662,1726782640489,-1000.0,0.0001809,2]
[338609663,1726782640500,-3000.0,0.0001809,2]
[338609664,1726782640510,-49333.62735615,0.0001809,2]
[338609665,1726782640521,-308.16290498,0.00018099,2]
[338609666,1726782640533,-3000.0,0.000181,2]
[338609667,1726782640545,-1823.95428452,0.000181,2]
[338609668,1726782640555,-150.112233,0.000181,2]
[338609669,1726782640567,-150.112233,0.000181,2]
[338609670,1726782640576,-150.112233,0.000181,2]
[338609671,1726782640585,-150.112233,0.000181,2]
[338609672,1726782640594,-150.112233,0.000181,2]
[338609673,1726782640603,-150.112233,0.000181,2]
[338609674,1726782640611,-3000.0,0.0001811,2]
[338609675,1726782640620,-308.16290498,0.00018119,2]
[338609676,1726782640629,-3000.0,0.0001812,2]
[338609677,1726782640638,-3000.0,0.0001813,2]
[338609678,1726782640648,-160.02586601,0.00018139,2]
[338609679,1726782640658,-500.0,0.00018139,2]
[338609680,1726782640667,-237.72804819,0.00018139,2]
[338609681,1726782640677,-500.0,0.00018139,2]
[338609682,1726782640687,-500.0,0.00018139,2]
[338609683,1726782640697,-500.0,0.00018139,2]
[338609684,1726782640706,-500.0,0.00018139,2]